fUST/lending_fUST_20240801
["ID","MTS","AMOUNT","RATE_DAILY","PERIOD"]
[333765532,1722461452923,-1432.79,0.00014246,2]
[333765533,1722461452932,-179.62631996,0.00014246,2]
[333765534,1722461452942,-559.44,0.00014246,2]
[333765535,1722461452951,-1265.58,0.00014246,2]
[333765536,1722461452960,-588.84,0.00014246,2]
[333765537,1722461452971,-500.0,0.00014246,2]
[333765538,1722461452982,-328.85603228,0.00014246,2]
[333765539,1722461452993,-168.101289,0.00014246,2]
[333765540,1722461453003,-618.06,0.00014246,2]
[333765541,1722461453014,-500.0,0.00014246,2]
[333765542,1722461453025,-168.101289,0.00014246,2]
[333765543,1722461453034,-151.0,0.00014246,2]
[333765544,1722461453045,-1369.18,0.00014246,2]
[333765545,1722461453055,-151.0,0.00014246,2]
[333765546,1722461453066,-638.56,0.00014246,2]
[333765547,1722461453075,-500.0,0.00014246,2]
[333765548,1722461453085,-689.68,0.00014246,2]
[333765549,1722461453095,-500.0,0.00014246,2]
[333765550,1722461453106,-2690.22,0.00014246,2]
[333765551,1722461453116,-564.53,0.00014246,2]
[333765552,1722461453126,-861.04,0.00014246,2]
[333765553,1722461453135,-1372.06,0.00014246,2]
[333765554,1722461453144,-151.0,0.00014246,2]
[333765555,1722461453154,-500.0,0.00014246,2]
[333765556,1722461453163,-765.71,0.00014246,2]
[333765557,1722461453172,-523.97,0.00014246,2]
[333765558,1722461453182,-1680.77,0.00014246,2]
[333765559,1722461453191,-151.0,0.00014246,2]
[333765560,1722461453200,-7612.61,0.00014246,2]
[333765561,1722461453210,-835.94,0.00014246,2]
[333765562,1722461453220,-500.0,0.00014246,2]
[333765563,1722461453230,-8624.05,0.00014246,2]
[333765564,1722461453240,-1516.56,0.00014246,2]
[333765565,1722461453249,-500.0,0.00014246,2]
[333765566,1722461453259,-679.16,0.00014246,2]
[333765567,1722461453268,-740.588459,0.00014246,2]
[333765568,1722461453278,-740.588459,0.00014246,2]
[333765569,1722461453288,-287.85659771,0.00014246,2]
[333765570,1722461453371,-740.588459,0.00014246,2]
[333765571,1722461453381,-740.588459,0.00014246,2]
[333765572,1722461453391,-524.88,0.00014246,2]
[333765573,1722461453400,-992.53,0.00014246,2]
[333765574,1722461453410,-3142.98,0.00014246,2]
[333765575,1722461453419,-519.81,0.00014246,2]
[333765576,1722461453428,-624.58,0.00014246,2]
[333765577,1722461453438,-670.57,0.00014246,2]
[333765578,1722461453447,-500.0,0.00014246,2]
[333765579,1722461453456,-1188.45,0.00014246,2]
[333765580,1722461453467,-1116.95,0.00014246,2]
[333765581,1722461453476,-500.0,0.00014246,2]
[333765582,1722461453485,-534.11,0.00014246,2]
[333765583,1722461453494,-547.3,0.00014246,2]
[333765584,1722461453504,-566.85,0.00014246,2]
[333765585,1722461453514,-2939.88,0.00014246,2]
[333765586,1722461453523,-500.0,0.00014246,2]
[333765587,1722461453532,-500.0,0.00014246,2]
[333765588,1722461453542,-500.0,0.00014246,2]
[333765589,1722461453551,-243.55391346,0.00014246,2]
[333765590,1722461453562,-500.0,0.00014246,2]
[333765591,1722461453571,-750.0,0.00014247,2]
[333765592,1722461453580,-183.57969,0.00014247,2]
[333765593,1722461453590,-587.0,0.00014348,2]
[333765594,1722461453599,-305.360739,0.000145,5]
[333765595,1722461453609,-151.0,0.0001452,2]
[333765596,1722461453618,-151.0,0.0001452,2]
[333765597,1722461453627,-151.0,0.0001452,2]
[333765598,1722461453637,-500.0,0.0001452,2]
[333765599,1722461453646,-500.0,0.0001452,2]
[333765600,1722461453656,-604.97,0.0001452,2]
[333765601,1722461453669,-183.88346565,0.0001452,2]
[333765602,1722461453680,-500.0,0.0001452,2]
[333765603,1722461453690,-500.0,0.0001452,2]
[333765604,1722461453700,-151.0,0.0001452,2]
[333765605,1722461453713,-151.0,0.0001452,2]
[333765606,1722461453724,-151.0,0.0001452,2]
[333765607,1722461453736,-500.0,0.0001452,2]
[333765608,1722461453748,-805.92,0.0001452,2]
[333765609,1722461453760,-197.905927,0.0001452,2]
[333765610,1722461453771,-1505.82,0.0001452,2]
[333765611,1722461453781,-500.0,0.0001452,2]
[333765612,1722461453793,-151.0,0.0001452,2]
[333765613,1722461453804,-151.0,0.0001452,2]
[333765614,1722461453815,-151.0,0.0001452,2]
[333765615,1722461453826,-151.0,0.0001452,2]
[333765616,1722461453836,-151.0,0.0001452,2]
[333765617,1722461453848,-500.0,0.0001452,2]
[333765618,1722461453860,-157.444211,0.0001452,2]
[333765619,1722461453872,-500.0,0.0001452,2]
[333765620,1722461453883,-1194.67,0.0001452,2]
[333765621,1722461453892,-500.0,0.0001452,2]
[333765622,1722461453904,-1181.06,0.0001452,2]
[333765623,1722461453913,-500.0,0.0001452,2]
[333765624,1722461453924,-500.0,0.0001452,2]
[333765625,1722461453934,-500.0,0.0001452,2]
[333765626,1722461453942,-1066.94,0.0001452,2]
[333765627,1722461453952,-611.77,0.0001452,2]
[333765628,1722461453962,-543.21,0.0001452,2]
[333765629,1722461453972,-212.898326,0.0001452,2]
[333765630,1722461453982,-500.0,0.0001452,2]
[333765631,1722461453991,-548.380905,0.0001452,2]
[333765632,1722461454001,-548.380905,0.0001452,2]
[333765633,1722461454011,-500.0,0.0001452,2]
[333765634,1722461454021,-500.0,0.0001452,2]
[333765635,1722461454031,-1192.85,0.0001452,2]
[333765636,1722461454043,-1073.05,0.0001452,2]
[333765637,1722461454053,-500.0,0.0001452,2]
[333765638,1722461454064,-500.0,0.0001452,2]
[333765639,1722461454073,-500.0,0.0001452,2]
[333765640,1722461454083,-686.29,0.0001452,2]
[333765641,1722461454095,-500.0,0.0001452,2]
[333765642,1722461454104,-500.0,0.0001452,2]
[333765643,1722461454115,-151.0,0.0001452,2]
[333765644,1722461454124,-500.0,0.0001452,2]
[333765645,1722461454135,-500.0,0.0001452,2]
[333765646,1722461454146,-500.0,0.0001452,2]
[333765647,1722461454157,-500.0,0.0001452,2]
[333765648,1722461454169,-688.1,0.0001452,2]
[333765649,1722461454180,-500.0,0.0001452,2]
[333765650,1722461454189,-448.141344,0.0001452,2]
[333765651,1722461454199,-500.0,0.0001452,2]
[333765652,1722461454209,-448.141344,0.0001452,2]
[333765653,1722461454218,-500.0,0.0001452,2]
[333765654,1722461454227,-500.0,0.0001452,2]
[333765655,1722461454237,-526.65,0.0001452,2]
[333765656,1722461454246,-1520.97,0.0001452,2]
[333765657,1722461454256,-500.0,0.0001452,2]
[333765658,1722461454266,-659.97,0.0001452,2]
[333765659,1722461454275,-683.72,0.0001452,2]
[333765660,1722461454285,-649.22,0.0001452,2]
[333765661,1722461454297,-712.86,0.0001452,2]
[333765662,1722461454308,-812.53,0.0001452,2]
[333765663,1722461454319,-523.71,0.0001452,2]
[333765664,1722461454327,-500.0,0.0001452,2]
[333765665,1722461454337,-184.358229,0.0001452,2]
[333765666,1722461454346,-151.0,0.0001452,2]
[333765667,1722461454358,-184.358229,0.0001452,2]
[333765668,1722461454369,-616.88,0.0001452,2]
[333765669,1722461454379,-500.0,0.0001452,2]
[333765670,1722461454389,-743.52,0.0001452,2]
[333765671,1722461454399,-500.0,0.0001452,2]
[333765672,1722461454411,-314.77886917,0.0001452,2]
[333765673,1722461454421,-151.0,0.0001452,2]
[333765674,1722461454431,-500.0,0.0001452,2]
[333765675,1722461454442,-500.0,0.0001452,2]
[333765676,1722461454452,-151.0,0.0001452,2]
[333765677,1722461454463,-500.0,0.0001452,2]
[333765678,1722461454473,-151.0,0.0001452,2]
[333765679,1722461454484,-500.0,0.0001452,2]
[333765680,1722461454494,-504.87347054,0.0001452,2]
[333765681,1722461454504,-500.0,0.0001452,2]
[333765682,1722461454513,-176.135577,0.0001452,2]
[333765683,1722461454522,-500.0,0.0001452,2]
[333765684,1722461454532,-176.135577,0.0001452,2]
[333765685,1722461454541,-500.0,0.0001452,2]
[333765686,1722461454550,-500.0,0.0001452,2]
[333765687,1722461454561,-507.52,0.0001452,2]
[333765688,1722461454571,-500.0,0.0001452,2]
[333765689,1722461454580,-500.0,0.0001452,2]
[333765690,1722461454590,-1150.37,0.0001452,2]
[333765691,1722461454600,-198.86513,0.0001452,2]
[333765692,1722461454610,-3622.8,0.0001452,2]
[333765693,1722461454619,-198.86513,0.0001452,2]
[333765694,1722461454629,-1759.95,0.0001452,2]
[333765695,1722461454639,-500.0,0.0001452,2]
[333765696,1722461454648,-500.0,0.0001452,2]
[333765697,1722461454659,-500.0,0.0001452,2]
[333765698,1722461454671,-500.0,0.0001452,2]
[333765699,1722461454685,-820.72,0.0001452,2]
[333765700,1722461454697,-500.0,0.0001452,2]
[333765701,1722461454706,-500.0,0.0001452,2]
[333765702,1722461454717,-500.0,0.0001452,2]
[333765703,1722461454727,-894.18,0.0001452,2]
[333765704,1722461454738,-1038.94,0.0001452,2]
[333765705,1722461454748,-461.08808009,0.0001452,2]
[333765706,1722461454759,-644.77474,0.0001452,2]
[333765707,1722461454769,-631.82,0.0001452,2]
[333765708,1722461454778,-644.77474,0.0001452,2]
[333765709,1722461454788,-500.0,0.0001452,2]
[333765710,1722461454798,-151.0,0.0001452,2]
[333765711,1722461454808,-500.0,0.0001452,2]
[333765712,1722461454820,-500.0,0.0001452,2]
[333765713,1722461454832,-500.0,0.0001452,2]
[333765714,1722461454841,-500.0,0.0001452,2]
[333765715,1722461454851,-1503.62,0.0001452,2]
[333765716,1722461454860,-500.0,0.0001452,2]
[333765717,1722461454870,-771.47,0.0001452,2]
[333765718,1722461454949,-1920.41,0.0001452,2]
[333765719,1722461454959,-8794.51,0.0001452,2]
[333765720,1722461454969,-1517.94,0.0001452,2]
[333765721,1722461454978,-500.0,0.0001452,2]
[333765722,1722461454989,-627.980463,0.0001452,2]
[333765723,1722461455000,-627.980463,0.0001452,2]
[333765724,1722461455009,-500.0,0.0001452,2]
[333765725,1722461455019,-3036.69,0.0001452,2]
[333765726,1722461455028,-6069.27,0.0001452,2]
[333765727,1722461455038,-500.0,0.0001452,2]
[333765728,1722461455049,-979.28,0.0001452,2]
[333765729,1722461455059,-500.0,0.0001452,2]
[333765730,1722461455069,-2827.17,0.0001452,2]
[333765731,1722461455080,-500.0,0.0001452,2]
[333765732,1722461455089,-1536.81,0.0001452,2]
[333765733,1722461455099,-1294.81,0.0001452,2]
[333765734,1722461455109,-1176.86,0.0001452,2]
[333765735,1722461455120,-983.68,0.0001452,2]
[333765736,1722461455131,-1386.76,0.0001452,2]
[333765737,1722461455142,-500.0,0.0001452,2]
[333765738,1722461455154,-512.42,0.0001452,2]
[333765739,1722461455165,-1306.72,0.0001452,2]
[333765740,1722461455175,-500.0,0.0001452,2]
[333765741,1722461455184,-355.485639,0.0001452,2]
[333765742,1722461455194,-355.485639,0.0001452,2]
[333765743,1722461455203,-2437.71,0.0001452,2]
[333765744,1722461455215,-1822.59,0.0001452,2]
[333765745,1722461455224,-500.0,0.0001452,2]
[333765746,1722461455234,-562.1,0.0001452,2]
[333765747,1722461455244,-1432.79,0.0001452,2]
[333765748,1722461455255,-559.44,0.0001452,2]
[333765749,1722461455264,-1265.58,0.0001452,2]
[333765750,1722461455275,-588.84,0.0001452,2]
[333765751,1722461455286,-168.101289,0.0001452,2]
[333765752,1722461455296,-618.06,0.0001452,2]
[333765753,1722461455306,-168.101289,0.0001452,2]
[333765754,1722461455318,-500.0,0.0001452,2]
[333765755,1722461455328,-168.101289,0.0001452,2]
[333765756,1722461455339,-168.101289,0.0001452,2]
[333765757,1722461455350,-1369.18,0.0001452,2]
[333765758,1722461455361,-151.0,0.0001452,2]
[333765759,1722461455372,-638.56,0.0001452,2]
[333765760,1722461455383,-689.68,0.0001452,2]
[333765761,1722461455393,-2690.22,0.0001452,2]
[333765762,1722461455403,-564.53,0.0001452,2]
[333765763,1722461455412,-861.04,0.0001452,2]
[333765764,1722461455421,-1372.06,0.0001452,2]
[333765765,1722461455430,-151.0,0.0001452,2]
[333765766,1722461455439,-765.71,0.0001452,2]
[333765767,1722461455449,-523.97,0.0001452,2]
[333765768,1722461455458,-1680.77,0.0001452,2]
[333765769,1722461455468,-151.0,0.0001452,2]
[333765770,1722461455478,-7612.61,0.0001452,2]
[333765771,1722461455487,-155.427639,0.0001452,2]
[333765772,1722461455498,-835.94,0.0001452,2]
[333765773,1722461455507,-500.0,0.0001452,2]
[333765774,1722461455517,-1516.56,0.0001452,2]
[333765775,1722461455528,-679.16,0.0001452,2]
[333765776,1722461455537,-740.588459,0.0001452,2]
[333765777,1722461455548,-8624.05,0.0001452,2]
[333765778,1722461455559,-740.588459,0.0001452,2]
[333765779,1722461455571,-524.88,0.0001452,2]
[333765780,1722461455582,-992.53,0.0001452,2]
[333765781,1722461455594,-3142.98,0.0001452,2]
[333765782,1722461455605,-519.81,0.0001452,2]
[333765783,1722461455615,-624.58,0.0001452,2]
[333765784,1722461455625,-670.57,0.0001452,2]
[333765785,1722461455635,-500.0,0.0001452,2]
[333765786,1722461455647,-1188.45,0.0001452,2]
[333765787,1722461455658,-1116.95,0.0001452,2]
[333765788,1722461455669,-500.0,0.0001452,2]
[333765789,1722461455682,-534.11,0.0001452,2]
[333765790,1722461455693,-547.3,0.0001452,2]
[333765791,1722461455704,-566.85,0.0001452,2]
[333765792,1722461455714,-2939.88,0.0001452,2]
[333765793,1722461455726,-500.0,0.0001452,2]
[333765794,1722461455735,-500.0,0.0001452,2]
[333765795,1722461455746,-500.0,0.0001452,2]
[333765796,1722461455760,-477.78932021,0.0001452,2]
[333765797,1722461455771,-1091.29802379,0.0001469,2]
[333765798,1722461455781,-1566.27775317,0.0001469,2]
[333765799,1722461455791,-473.83614436,0.0001469,2]
[333765800,1722461455801,-527.06939469,0.0001469,2]
[333765801,1722461455810,-335.72666735,0.0001469,2]
[333765802,1722461455822,-660.0,0.0001469,2]
[333765803,1722461455831,-291.20043196,0.0001469,2]
[333765804,1722461455841,-30000.0,0.0001469,2]
[333765805,1722461455852,-459.50260569,0.0001469,2]
[333765806,1722461455861,-151.0,0.0001469,2]
[333765807,1722461455870,-151.0,0.0001469,2]
[333765808,1722461455879,-151.0,0.0001469,2]
[333765809,1722461455889,-197.905927,0.0001469,2]
[333765810,1722461455898,-448.141344,0.0001469,2]
[333765811,1722461455907,-448.141344,0.0001469,2]
[333765812,1722461455918,-184.358229,0.0001469,2]
[333765813,1722461455927,-151.0,0.0001469,2]
[333765814,1722461455937,-184.358229,0.0001469,2]
[333765815,1722461455946,-151.0,0.0001469,2]
[333765816,1722461455958,-151.0,0.0001469,2]
[333765817,1722461455969,-176.135577,0.0001469,2]
[333765818,1722461455978,-176.135577,0.0001469,2]
[333765819,1722461455988,-198.86513,0.0001469,2]
[333765820,1722461455999,-198.86513,0.0001469,2]
[333765821,1722461456009,-644.77474,0.0001469,2]
[333765822,1722461456018,-644.77474,0.0001469,2]
[333765823,1722461456028,-151.0,0.0001469,2]
[333765824,1722461456038,-627.980463,0.0001469,2]
[333765825,1722461456047,-627.980463,0.0001469,2]
[333765826,1722461456056,-355.485639,0.0001469,2]
[333765827,1722461456068,-355.485639,0.0001469,2]
[333765828,1722461456078,-151.0,0.0001469,2]
[333765829,1722461456088,-151.0,0.0001469,2]
[333765830,1722461456097,-740.588459,0.0001469,2]
[333765831,1722461456106,-740.588459,0.0001469,2]
[333765832,1722461456117,-300.7414186,0.00014693,2]
[333765833,1722461456126,-600.0,0.00014728,2]
[333765834,1722461456135,-170.10465463,0.00014774,2]
[333765835,1722461456146,-151.0,0.00014794,2]
[333765836,1722461456156,-151.0,0.00014794,2]
[333765837,1722461456166,-151.0,0.00014794,2]
[333765838,1722461456175,-604.97,0.00014794,2]
[333765839,1722461456185,-500.0,0.00014794,2]
[333765840,1722461456194,-252.18930181,0.00014794,2]
[333765841,1722461456204,-268.562233,0.00014794,2]
[333765842,1722461456213,-237.614368,0.00014794,2]
[333765843,1722461456223,-805.92,0.00014794,2]
[333765844,1722461456233,-197.905927,0.00014794,2]
[333765845,1722461456242,-1505.82,0.00014794,2]
[333765846,1722461456252,-500.0,0.00014794,2]
[333765847,1722461456261,-151.0,0.00014794,2]
[333765848,1722461456270,-151.0,0.00014794,2]
[333765849,1722461456280,-500.0,0.00014794,2]
[333765850,1722461456290,-500.0,0.00014794,2]
[333765851,1722461456300,-1194.67,0.00014794,2]
[333765852,1722461456310,-500.0,0.00014794,2]
[333765853,1722461456386,-1181.06,0.00014794,2]
[333765854,1722461456396,-500.0,0.00014794,2]
[333765855,1722461456406,-500.0,0.00014794,2]
[333765856,1722461456416,-500.0,0.00014794,2]
[333765857,1722461456427,-1066.94,0.00014794,2]
[333765858,1722461456437,-611.77,0.00014794,2]
[333765859,1722461456447,-543.21,0.00014794,2]
[333765860,1722461456457,-500.0,0.00014794,2]
[333765861,1722461456467,-548.380905,0.00014794,2]
[333765862,1722461456476,-548.380905,0.00014794,2]
[333765863,1722461456487,-500.0,0.00014794,2]
[333765864,1722461456496,-500.0,0.00014794,2]
[333765865,1722461456507,-1192.85,0.00014794,2]
[333765866,1722461456516,-1073.05,0.00014794,2]
[333765867,1722461456526,-500.0,0.00014794,2]
[333765868,1722461456535,-500.0,0.00014794,2]
[333765869,1722461456544,-500.0,0.00014794,2]
[333765870,1722461456553,-686.29,0.00014794,2]
[333765871,1722461456565,-500.0,0.00014794,2]
[333765872,1722461456575,-500.0,0.00014794,2]
[333765873,1722461456585,-500.0,0.00014794,2]
[333765874,1722461456596,-210.5929093,0.00014794,2]
[333765875,1722461456605,-500.0,0.00014794,2]
[333765876,1722461456616,-500.0,0.00014794,2]
[333765877,1722461456626,-688.1,0.00014794,2]
[333765878,1722461456635,-500.0,0.00014794,2]
[333765879,1722461456645,-448.141344,0.00014794,2]
[333765880,1722461456655,-500.0,0.00014794,2]
[333765881,1722461456665,-448.141344,0.00014794,2]
[333765882,1722461456681,-500.0,0.00014794,2]
[333765883,1722461456691,-500.0,0.00014794,2]
[333765884,1722461456701,-526.65,0.00014794,2]
[333765885,1722461456711,-1520.97,0.00014794,2]
[333765886,1722461456722,-500.0,0.00014794,2]
[333765887,1722461456732,-659.97,0.00014794,2]
[333765888,1722461456744,-683.72,0.00014794,2]
[333765889,1722461456755,-649.22,0.00014794,2]
[333765890,1722461456765,-712.86,0.00014794,2]
[333765891,1722461456775,-812.53,0.00014794,2]
[333765892,1722461456784,-523.71,0.00014794,2]
[333765893,1722461456794,-184.358229,0.00014794,2]
[333765894,1722461456803,-151.0,0.00014794,2]
[333765895,1722461456815,-184.358229,0.00014794,2]
[333765896,1722461456825,-616.88,0.00014794,2]
[333765897,1722461456835,-743.52,0.00014794,2]
[333765898,1722461456845,-500.0,0.00014794,2]
[333765899,1722461456855,-500.0,0.00014794,2]
[333765900,1722461456866,-151.0,0.00014794,2]
[333765901,1722461456876,-151.0,0.00014794,2]
[333765902,1722461456887,-364.80058449,0.00014794,2]
[333765903,1722461456896,-176.135577,0.00014794,2]
[333765904,1722461456906,-500.0,0.00014794,2]
[333765905,1722461456917,-176.135577,0.00014794,2]
[333765906,1722461456926,-507.52,0.00014794,2]
[333765907,1722461456936,-500.0,0.00014794,2]
[333765908,1722461456947,-500.0,0.00014794,2]
[333765909,1722461456956,-1150.37,0.00014794,2]
[333765910,1722461456966,-198.86513,0.00014794,2]
[333765911,1722461456976,-3622.8,0.00014794,2]
[333765912,1722461456986,-198.86513,0.00014794,2]
[333765913,1722461456996,-1759.95,0.00014794,2]
[333765914,1722461457006,-500.0,0.00014794,2]
[333765915,1722461457015,-500.0,0.00014794,2]
[333765916,1722461457026,-500.0,0.00014794,2]
[333765917,1722461457036,-500.0,0.00014794,2]
[333765918,1722461457046,-820.72,0.00014794,2]
[333765919,1722461457055,-500.0,0.00014794,2]
[333765920,1722461457069,-500.0,0.00014794,2]
[333765921,1722461457079,-894.18,0.00014794,2]
[333765922,1722461457088,-1038.94,0.00014794,2]
[333765923,1722461457098,-644.77474,0.00014794,2]
[333765924,1722461457107,-631.82,0.00014794,2]
[333765925,1722461457117,-644.77474,0.00014794,2]
[333765926,1722461457129,-500.0,0.00014794,2]
[333765927,1722461457138,-151.0,0.00014794,2]
[333765928,1722461457148,-500.0,0.00014794,2]
[333765929,1722461457158,-500.0,0.00014794,2]
[333765930,1722461457168,-500.0,0.00014794,2]
[333765931,1722461457178,-500.0,0.00014794,2]
[333765932,1722461457187,-1503.62,0.00014794,2]
[333765933,1722461457197,-500.0,0.00014794,2]
[333765934,1722461457207,-771.47,0.00014794,2]
[333765935,1722461457216,-1920.41,0.00014794,2]
[333765936,1722461457226,-8794.51,0.00014794,2]
[333765937,1722461457236,-1517.94,0.00014794,2]
[333765938,1722461457245,-500.0,0.00014794,2]
[333765939,1722461457254,-627.980463,0.00014794,2]
[333765940,1722461457265,-627.980463,0.00014794,2]
[333765941,1722461457275,-500.0,0.00014794,2]
[333765942,1722461457284,-3036.69,0.00014794,2]
[333765943,1722461457295,-6069.27,0.00014794,2]
[333765944,1722461457305,-500.0,0.00014794,2]
[333765945,1722461457321,-979.28,0.00014794,2]
[333765946,1722461457331,-500.0,0.00014794,2]
[333765947,1722461457340,-2827.17,0.00014794,2]
[333765948,1722461457349,-500.0,0.00014794,2]
[333765949,1722461457359,-1536.81,0.00014794,2]
[333765950,1722461457367,-1294.81,0.00014794,2]
[333765951,1722461457377,-1176.86,0.00014794,2]
[333765952,1722461457387,-983.68,0.00014794,2]
[333765953,1722461457396,-1386.76,0.00014794,2]
[333765954,1722461457406,-512.42,0.00014794,2]
[333765955,1722461457415,-1306.72,0.00014794,2]
[333765956,1722461457426,-355.485639,0.00014794,2]
[333765957,1722461457436,-355.485639,0.00014794,2]
[333765958,1722461457445,-2437.71,0.00014794,2]
[333765959,1722461457456,-1822.59,0.00014794,2]
[333765960,1722461457467,-500.0,0.00014794,2]
[333765961,1722461457476,-562.1,0.00014794,2]
[333765962,1722461457485,-1432.79,0.00014794,2]
[333765963,1722461457495,-559.44,0.00014794,2]
[333765964,1722461457505,-1265.58,0.00014794,2]
[333765965,1722461457514,-588.84,0.00014794,2]
[333765966,1722461457524,-618.06,0.00014794,2]
[333765967,1722461457533,-168.101289,0.00014794,2]
[333765968,1722461457543,-500.0,0.00014794,2]
[333765969,1722461457553,-168.101289,0.00014794,2]
[333765970,1722461457566,-1369.18,0.00014794,2]
[333765971,1722461457575,-151.0,0.00014794,2]
[333765972,1722461457584,-638.56,0.00014794,2]
[333765973,1722461457593,-689.68,0.00014794,2]
[333765974,1722461457603,-2690.22,0.00014794,2]
[333765975,1722461457614,-564.53,0.00014794,2]
[333765976,1722461457624,-861.04,0.00014794,2]
[333765977,1722461457633,-1372.06,0.00014794,2]
[333765978,1722461457701,-151.0,0.00014794,2]
[333765979,1722461457717,-765.71,0.00014794,2]
[333765980,1722461457726,-523.97,0.00014794,2]
[333765981,1722461457736,-1680.77,0.00014794,2]
[333765982,1722461457747,-7612.61,0.00014794,2]
[333765983,1722461457757,-835.94,0.00014794,2]
[333765984,1722461457766,-500.0,0.00014794,2]
[333765985,1722461457775,-1516.56,0.00014794,2]
[333765986,1722461457785,-679.16,0.00014794,2]
[333765987,1722461457795,-8624.05,0.00014794,2]
[333765988,1722461457804,-740.588459,0.00014794,2]
[333765989,1722461457815,-740.588459,0.00014794,2]
[333765990,1722461457825,-524.88,0.00014794,2]
[333765991,1722461457835,-3142.98,0.00014794,2]
[333765992,1722461457845,-519.81,0.00014794,2]
[333765993,1722461457854,-624.58,0.00014794,2]
[333765994,1722461457864,-670.57,0.00014794,2]
[333765995,1722461457873,-500.0,0.00014794,2]
[333765996,1722461457884,-1188.45,0.00014794,2]
[333765997,1722461457894,-1116.95,0.00014794,2]
[333765998,1722461457903,-500.0,0.00014794,2]
[333765999,1722461457915,-534.11,0.00014794,2]
[333766000,1722461457926,-547.3,0.00014794,2]
[333766001,1722461457936,-566.85,0.00014794,2]
[333766002,1722461457946,-2939.88,0.00014794,2]
[333766003,1722461457957,-500.0,0.00014794,2]
[333766004,1722461457968,-500.0,0.00014794,2]
[333766005,1722461457977,-500.0,0.00014794,2]
[333766006,1722461457987,-600.0,0.00014882,2]
[333766007,1722461457998,-2557.85265061,0.00015,2]
[333766008,1722461458009,-1652.57436212,0.00015,7]
[333766009,1722461458019,-216.85480723,0.00015,2]
[333766010,1722461458029,-2847.13724282,0.00015,2]
[333766011,1722461458039,-977.08211555,0.00015014,2]
[333766012,1722461458050,-153.0,0.00015034,2]
[333766013,1722461458060,-153.0,0.00015034,2]
[333766014,1722461458070,-153.0,0.00015034,2]
[333766015,1722461458080,-153.0,0.00015034,2]
[333766016,1722461458089,-600.0,0.00015035,2]
[333766017,1722461458098,-641.80792585,0.00015067,3]
[333766018,1722461458108,-151.0,0.00015068,2]
[333766019,1722461458118,-151.0,0.00015068,2]
[333766020,1722461458127,-604.97,0.00015068,2]
[333766021,1722461458138,-500.0,0.00015068,2]
[333766022,1722461458147,-805.92,0.00015068,2]
[333766023,1722461458157,-197.905927,0.00015068,2]
[333766024,1722461458167,-1505.82,0.00015068,2]
[333766025,1722461458177,-500.0,0.00015068,2]
[333766026,1722461458187,-151.0,0.00015068,2]
[333766027,1722461458197,-178.273074,0.00015068,2]
[333766028,1722461458207,-500.0,0.00015068,2]
[333766029,1722461458217,-500.0,0.00015068,2]
[333766030,1722461458227,-1194.67,0.00015068,2]
[333766031,1722461458237,-500.0,0.00015068,2]